fUST/lending_fUST_20260608
["ID","MTS","AMOUNT","RATE_DAILY","PERIOD"]
[424433108,1780883457000,-500.0,0.00018356,2]
[424433111,1780883457000,-500.0,0.00018356,2]
[424433105,1780883457000,-500.0,0.00018356,2]
[424433109,1780883457000,-500.0,0.00018356,2]
[424433114,1780883457000,-500.0,0.00018356,2]
[424433113,1780883457000,-580.25,0.00018356,2]
[424433112,1780883457000,-807.82,0.00018356,2]
[424433115,1780883457000,-2108.36,0.00018356,2]
[424433106,1780883457000,-517.91,0.00018356,2]
[424433117,1780883457000,-998.99,0.00018356,2]
[424433119,1780883457000,-1414.11,0.00018356,2]
[424433118,1780883457000,-2364.95,0.00018356,2]
[424433089,1780883457000,-513.47,0.00018356,2]
[424433090,1780883457000,-500.0,0.00018356,2]
[424433104,1780883457000,-500.0,0.00018356,2]
[424433088,1780883457000,-1081.12,0.00018356,2]
[424433061,1780883457000,-621.15,0.00018356,2]
[424433091,1780883457000,-500.0,0.00018356,2]
[424433062,1780883457000,-500.0,0.00018356,2]
[424433064,1780883457000,-583.34,0.00018356,2]
[424433072,1780883457000,-628.19,0.00018356,2]
[424433066,1780883457000,-500.0,0.00018356,2]
[424433063,1780883457000,-500.0,0.00018356,2]
[424433073,1780883457000,-500.0,0.00018356,2]
[424433070,1780883457000,-886.09,0.00018356,2]
[424433069,1780883457000,-500.0,0.00018356,2]
[424433068,1780883457000,-500.0,0.00018356,2]
[424433067,1780883457000,-500.0,0.00018356,2]
[424433071,1780883457000,-500.0,0.00018356,2]
[424433074,1780883457000,-500.0,0.00018356,2]
[424433065,1780883457000,-1188.83,0.00018356,2]
[424433086,1780883457000,-500.0,0.00018356,2]
[424433087,1780883457000,-500.0,0.00018356,2]
[424433076,1780883457000,-935.98,0.00018356,2]
[424433085,1780883457000,-500.0,0.00018356,2]
[424433083,1780883457000,-500.0,0.00018356,2]
[424433075,1780883457000,-638.01,0.00018356,2]
[424433084,1780883457000,-2306.87,0.00018356,2]
[424433082,1780883457000,-880.96,0.00018356,2]
[424433081,1780883457000,-500.0,0.00018356,2]
[424433077,1780883457000,-770.17,0.00018356,2]
[424433079,1780883457000,-518.9,0.00018356,2]
[424433078,1780883457000,-538.94,0.00018356,2]
[424433080,1780883457000,-900.86,0.00018356,2]
[424433161,1780883458000,-2631.22,0.00018356,2]
[424433162,1780883458000,-500.0,0.00018356,2]
[424433159,1780883458000,-1588.49,0.00018356,2]
[424433158,1780883458000,-3395.58,0.00018356,2]
[424433164,1780883458000,-500.0,0.00018356,2]
[424433148,1780883458000,-500.0,0.00018356,2]
[424433165,1780883458000,-1161.95,0.00018356,2]
[424433156,1780883458000,-500.0,0.00018356,2]
[424433166,1780883458000,-603.45,0.00018356,2]
[424433154,1780883458000,-500.0,0.00018356,2]
[424433155,1780883458000,-3940.21,0.00018356,2]
[424433160,1780883458000,-1127.17,0.00018356,2]
[424433157,1780883458000,-3940.81,0.00018356,2]
[424433163,1780883458000,-7065.26,0.00018356,2]
[424433178,1780883458000,-154.74195277,0.00018434,2]
[424433169,1780883458000,-2289.31,0.00018356,2]
[424433172,1780883458000,-615.25,0.00018356,2]
[424433171,1780883458000,-500.0,0.00018356,2]
[424433173,1780883458000,-553.88,0.00018356,2]
[424433170,1780883458000,-1890.08,0.00018356,2]
[424433174,1780883458000,-294.812643,0.00018366,2]
[424433177,1780883458000,-155.9203136,0.00018434,2]
[424433175,1780883458000,-1521.49791498,0.000184,2]
[424433176,1780883458000,-310.11538441,0.00018405,2]
[424433168,1780883458000,-1398.29,0.00018356,2]
[424433180,1780883458000,-155.19061667,0.00018434,2]
[424433179,1780883458000,-161.89446138,0.00018434,2]
[424433149,1780883458000,-500.0,0.00018356,2]
[424433167,1780883458000,-500.0,0.00018356,2]
[424433151,1780883458000,-1507.4,0.00018356,2]
[424433123,1780883458000,-782.05,0.00018356,2]
[424433150,1780883458000,-1440.04,0.00018356,2]
[424433120,1780883458000,-710.91,0.00018356,2]
[424433121,1780883458000,-24888.28,0.00018356,2]
[424433182,1780883458000,-166.43710445,0.00018434,2]
[424433126,1780883458000,-539.0,0.00018356,2]
[424433122,1780883458000,-500.0,0.00018356,2]
[424433125,1780883458000,-1204.28,0.00018356,2]
[424433128,1780883458000,-500.0,0.00018356,2]
[424433124,1780883458000,-500.0,0.00018356,2]
[424433127,1780883458000,-605.84,0.00018356,2]
[424433130,1780883458000,-2091.11,0.00018356,2]
[424433131,1780883458000,-500.0,0.00018356,2]
[424433139,1780883458000,-1603.54,0.00018356,2]
[424433132,1780883458000,-1117.32,0.00018356,2]
[424433137,1780883458000,-554.84,0.00018356,2]
[424433138,1780883458000,-555.15,0.00018356,2]
[424433129,1780883458000,-500.0,0.00018356,2]
[424433133,1780883458000,-500.0,0.00018356,2]
[424433134,1780883458000,-500.0,0.00018356,2]
[424433140,1780883458000,-500.0,0.00018356,2]
[424433141,1780883458000,-500.0,0.00018356,2]
[424433135,1780883458000,-500.0,0.00018356,2]
[424433136,1780883458000,-500.0,0.00018356,2]
[424433142,1780883458000,-500.0,0.00018356,2]
[424433143,1780883458000,-1717.19,0.00018356,2]
[424433147,1780883458000,-1076.95,0.00018356,2]
[424433144,1780883458000,-500.0,0.00018356,2]
[424433146,1780883458000,-6368.18,0.00018356,2]
[424433145,1780883458000,-2076.32,0.00018356,2]
[424433152,1780883458000,-184.03591113,0.00018356,2]
[424433153,1780883458000,-559.5,0.00018356,2]
[424433192,1780883458000,-1054.5979867,0.00018528,2]
[424433195,1780883458000,-3625.0,0.00018551,2]
[424433193,1780883458000,-1424.157,0.00018551,2]
[424433213,1780883458000,-621.15,0.0001863,2]
[424433216,1780883458000,-583.34,0.0001863,2]
[424433221,1780883458000,-500.0,0.0001863,2]
[424433225,1780883458000,-500.0,0.0001863,2]
[424433223,1780883458000,-500.0,0.0001863,2]
[424433224,1780883458000,-628.19,0.0001863,2]
[424433226,1780883458000,-500.0,0.0001863,2]
[424433222,1780883458000,-886.09,0.0001863,2]
[424433228,1780883458000,-935.98,0.0001863,2]
[424433227,1780883458000,-638.01,0.0001863,2]
[424433233,1780883458000,-500.0,0.0001863,2]
[424433230,1780883458000,-538.94,0.0001863,2]
[424433232,1780883458000,-900.86,0.0001863,2]
[424433229,1780883458000,-770.17,0.0001863,2]
[424433231,1780883458000,-518.9,0.0001863,2]
[424433244,1780883458000,-500.0,0.0001863,2]
[424433243,1780883458000,-500.0,0.0001863,2]
[424433235,1780883458000,-500.0,0.0001863,2]
[424433245,1780883458000,-513.84,0.0001863,2]
[424433246,1780883458000,-500.0,0.0001863,2]
[424433236,1780883458000,-2306.87,0.0001863,2]
[424433234,1780883458000,-880.96,0.0001863,2]
[424433237,1780883458000,-500.0,0.0001863,2]
[424433239,1780883458000,-500.0,0.0001863,2]
[424433238,1780883458000,-500.0,0.0001863,2]
[424433240,1780883458000,-1081.12,0.0001863,2]
[424433242,1780883458000,-500.0,0.0001863,2]
[424433247,1780883458000,-955.67,0.0001863,2]
[424433183,1780883458000,-150.58676702,0.00018434,2]
[424433217,1780883458000,-1188.83,0.0001863,2]
[424433214,1780883458000,-500.0,0.0001863,2]
[424433241,1780883458000,-513.47,0.0001863,2]
[424433212,1780883458000,-500.0,0.0001863,2]
[424433220,1780883458000,-500.0,0.0001863,2]
[424433184,1780883458000,-192.5885713,0.00018434,2]
[424433181,1780883458000,-161.50394257,0.00018434,2]
[424433185,1780883458000,-186.93945123,0.00018434,2]
[424433189,1780883458000,-169.48403189,0.00018447,2]
[424433186,1780883458000,-197.833554,0.00018434,2]
[424433187,1780883458000,-204.39884496,0.00018434,2]
[424433190,1780883458000,-153.7813235,0.00018477,2]
[424433188,1780883458000,-720.0,0.00018442,2]
[424433191,1780883458000,-701.4828983,0.00018516,2]
[424433199,1780883458000,-196.175338,0.0001862,2]
[424433197,1780883458000,-310.11538441,0.00018581,2]
[424433198,1780883458000,-1521.49791498,0.000186,2]
[424433207,1780883458000,-442.632198,0.0001862,2]
[424433194,1780883458000,-1844.797,0.00018551,2]
[424433206,1780883458000,-194.105789,0.0001862,2]
[424433205,1780883458000,-260.859025,0.0001862,2]
[424433219,1780883458000,-500.0,0.0001863,2]
[424433215,1780883458000,-500.0,0.0001863,2]
[424433209,1780883458000,-500.0,0.0001863,2]
[424433210,1780883458000,-1085.46,0.0001863,2]
[424433208,1780883458000,-1405.2529,0.0001863,2]
[424433218,1780883458000,-263.30334523,0.0001863,2]
[424433200,1780883458000,-272.449375,0.0001862,2]
[424433203,1780883458000,-299.654146,0.0001862,2]
[424433201,1780883458000,-312.452655,0.0001862,2]
[424433202,1780883458000,-182.16714,0.0001862,2]
[424433204,1780883458000,-391.288536,0.0001862,2]
[424433211,1780883458000,-500.0,0.0001863,2]
[424433196,1780883458000,-158.8763163,0.00018552,2]
[424433296,1780883459000,-500.0,0.0001863,2]
[424433285,1780883459000,-500.0,0.0001863,2]
[424433286,1780883459000,-500.0,0.0001863,2]
[424433281,1780883459000,-500.0,0.0001863,2]
[424433282,1780883459000,-2091.11,0.0001863,2]
[424433279,1780883459000,-605.84,0.0001863,2]
[424433272,1780883459000,-710.91,0.0001863,2]
[424433297,1780883459000,-2076.32,0.0001863,2]
[424433280,1780883459000,-500.0,0.0001863,2]
[424433277,1780883459000,-1204.28,0.0001863,2]
[424433283,1780883459000,-500.0,0.0001863,2]
[424433295,1780883459000,-1717.19,0.0001863,2]
[424433288,1780883459000,-500.0,0.0001863,2]
[424433287,1780883459000,-500.0,0.0001863,2]
[424433294,1780883459000,-500.0,0.0001863,2]
[424433290,1780883459000,-555.15,0.0001863,2]
[424433293,1780883459000,-500.0,0.0001863,2]
[424433292,1780883459000,-500.0,0.0001863,2]
[424433291,1780883459000,-1603.54,0.0001863,2]
[424433298,1780883459000,-6368.18,0.0001863,2]
[424433301,1780883459000,-500.0,0.0001863,2]
[424433300,1780883459000,-500.0,0.0001863,2]
[424433284,1780883459000,-1117.32,0.0001863,2]
[424433302,1780883459000,-1440.04,0.0001863,2]
[424433289,1780883459000,-554.84,0.0001863,2]
[424433276,1780883459000,-500.0,0.0001863,2]
[424433262,1780883459000,-500.0,0.0001863,2]
[424433275,1780883459000,-782.05,0.0001863,2]
[424433299,1780883459000,-1076.95,0.0001863,2]
[424433251,1780883459000,-500.0,0.0001863,2]
[424433249,1780883459000,-627.34,0.0001863,2]
[424433250,1780883459000,-500.0,0.0001863,2]
[424433252,1780883459000,-1029.66,0.0001863,2]
[424433253,1780883459000,-1271.8,0.0001863,2]
[424433254,1780883459000,-703.95,0.0001863,2]
[424433255,1780883459000,-663.23,0.0001863,2]
[424433248,1780883459000,-500.0,0.0001863,2]
[424433256,1780883459000,-500.0,0.0001863,2]
[424433269,1780883459000,-998.99,0.0001863,2]
[424433258,1780883459000,-517.91,0.0001863,2]
[424433278,1780883459000,-539.0,0.0001863,2]
[424433268,1780883459000,-500.0,0.0001863,2]
[424433263,1780883459000,-500.0,0.0001863,2]
[424433259,1780883459000,-500.0,0.0001863,2]
[424433264,1780883459000,-807.82,0.0001863,2]
[424433257,1780883459000,-500.0,0.0001863,2]
[424433270,1780883459000,-2364.95,0.0001863,2]
[424433267,1780883459000,-2108.36,0.0001863,2]
[424433266,1780883459000,-500.0,0.0001863,2]
[424433261,1780883459000,-500.0,0.0001863,2]
[424433265,1780883459000,-580.25,0.0001863,2]
[424433271,1780883459000,-1414.11,0.0001863,2]
[424433274,1780883459000,-500.0,0.0001863,2]
[424433273,1780883459000,-24888.28,0.0001863,2]
[424433260,1780883459000,-500.0,0.0001863,2]
[424433303,1780883459000,-1507.4,0.0001863,2]
[424433312,1780883459000,-2631.22,0.0001863,2]
[424433310,1780883459000,-1588.49,0.0001863,2]
[424433335,1780883459000,-156.0,0.00018903,2]
[424433337,1780883459000,-1405.2529,0.00018904,2]
[424433340,1780883459000,-500.0,0.00018904,2]
[424433341,1780883459000,-500.0,0.00018904,2]
[424433342,1780883459000,-621.15,0.00018904,2]
[424433347,1780883459000,-500.0,0.00018904,2]
[424433339,1780883459000,-500.0,0.00018904,2]
[424433338,1780883459000,-1085.46,0.00018904,2]
[424433346,1780883459000,-1188.83,0.00018904,2]
[424433345,1780883459000,-583.34,0.00018904,2]
[424433348,1780883459000,-500.0,0.00018904,2]
[424433344,1780883459000,-500.0,0.00018904,2]
[424433343,1780883459000,-500.0,0.00018904,2]
[424433350,1780883459000,-886.09,0.00018904,2]
[424433349,1780883459000,-500.0,0.00018904,2]
[424433351,1780883459000,-481.13758393,0.00018904,2]
[424433352,1780883459000,-628.19,0.00018904,2]
[424433354,1780883459000,-500.0,0.00018904,2]
[424433360,1780883459000,-900.86,0.00018904,2]
[424433356,1780883459000,-935.98,0.00018904,2]
[424433355,1780883459000,-638.01,0.00018904,2]
[424433304,1780883459000,-559.5,0.0001863,2]
[424433359,1780883459000,-518.9,0.00018904,2]
[424433358,1780883459000,-538.94,0.00018904,2]
[424433357,1780883459000,-770.17,0.00018904,2]
[424433336,1780883459000,-300.0,0.00018904,2]
[424433334,1780883459000,-3430.23153615,0.000189,2]
[424433353,1780883459000,-500.0,0.00018904,2]
[424433332,1780883459000,-156.5219914,0.00018882,2]
[424433331,1780883459000,-1306.82216677,0.00018862,2]
[424433309,1780883459000,-3395.58,0.0001863,2]
[424433308,1780883459000,-3940.81,0.0001863,2]
[424433306,1780883459000,-500.0,0.0001863,2]
[424433307,1780883459000,-500.0,0.0001863,2]
[424433311,1780883459000,-1127.17,0.0001863,2]
[424433323,1780883459000,-615.25,0.0001863,2]
[424433320,1780883459000,-2289.31,0.0001863,2]
[424433313,1780883459000,-500.0,0.0001863,2]
[424433314,1780883459000,-7065.26,0.0001863,2]
[424433322,1780883459000,-500.0,0.0001863,2]
[424433319,1780883459000,-1398.29,0.0001863,2]
[424433305,1780883459000,-3940.21,0.0001863,2]
[424433324,1780883459000,-553.88,0.0001863,2]
[424433321,1780883459000,-1890.08,0.0001863,2]
[424433329,1780883459000,-1521.49791498,0.000188,2]
[424433327,1780883459000,-172.8808,0.00018767,2]
[424433328,1780883459000,-297.202353,0.00018794,2]
[424433326,1780883459000,-310.11538441,0.00018757,2]
[424433330,1780883459000,-300.0,0.00018819,2]
[424433317,1780883459000,-603.45,0.0001863,2]
[424433315,1780883459000,-500.0,0.0001863,2]
[424433318,1780883459000,-500.0,0.0001863,2]
[424433316,1780883459000,-1161.95,0.0001863,2]
[424433325,1780883459000,-166.51,0.0001863,2]
[424433333,1780883459000,-235.3126176,0.00018885,2]
[424433386,1780883460000,-517.91,0.00018904,2]
[424433391,1780883460000,-500.0,0.00018904,2]
[424433389,1780883460000,-500.0,0.00018904,2]
[424433394,1780883460000,-380.20186161,0.00018904,2]
[424433388,1780883460000,-500.0,0.00018904,2]
[424433390,1780883460000,-352.80449287,0.00018904,2]
[424433398,1780883460000,-2364.95,0.00018904,2]
[424433393,1780883460000,-580.25,0.00018904,2]
[424433387,1780883460000,-500.0,0.00018904,2]
[424433392,1780883460000,-807.82,0.00018904,2]
[424433400,1780883460000,-710.91,0.00018904,2]
[424433396,1780883460000,-500.0,0.00018904,2]
[424433395,1780883460000,-2108.36,0.00018904,2]
[424433399,1780883460000,-1414.11,0.00018904,2]
[424433405,1780883460000,-1204.28,0.00018904,2]
[424433406,1780883460000,-539.0,0.00018904,2]
[424433404,1780883460000,-500.0,0.00018904,2]
[424433403,1780883460000,-782.05,0.00018904,2]
[424433402,1780883460000,-500.0,0.00018904,2]
[424433381,1780883460000,-1271.8,0.00018904,2]
[424433397,1780883460000,-998.99,0.00018904,2]
[424433379,1780883460000,-500.0,0.00018904,2]
[424433364,1780883460000,-2306.87,0.00018904,2]
[424433378,1780883460000,-500.0,0.00018904,2]
[424433401,1780883460000,-24888.28,0.00018904,2]
[424433362,1780883460000,-880.96,0.00018904,2]
[424433372,1780883460000,-500.0,0.00018904,2]
[424433367,1780883460000,-500.0,0.00018904,2]
[424433365,1780883460000,-500.0,0.00018904,2]
[424433368,1780883460000,-1081.12,0.00018904,2]
[424433366,1780883460000,-500.0,0.00018904,2]
[424433371,1780883460000,-500.0,0.00018904,2]
[424433361,1780883460000,-500.0,0.00018904,2]
[424433363,1780883460000,-500.0,0.00018904,2]
[424433369,1780883460000,-513.47,0.00018904,2]
[424433370,1780883460000,-500.0,0.00018904,2]
[424433374,1780883460000,-500.0,0.00018904,2]
[424433384,1780883460000,-500.0,0.00018904,2]
[424433383,1780883460000,-663.23,0.00018904,2]
[424433385,1780883460000,-500.0,0.00018904,2]
[424433375,1780883460000,-955.67,0.00018904,2]
[424433373,1780883460000,-513.84,0.00018904,2]
[424433376,1780883460000,-500.0,0.00018904,2]
[424433380,1780883460000,-1029.66,0.00018904,2]
[424433382,1780883460000,-703.95,0.00018904,2]
[424433377,1780883460000,-627.34,0.00018904,2]
[424433410,1780883460000,-2091.11,0.00018904,2]
[424433427,1780883460000,-1076.95,0.00018904,2]
[424433409,1780883460000,-151.80591343,0.00018904,2]
[424433429,1780883460000,-500.0,0.00018904,2]
[424433428,1780883460000,-500.0,0.00018904,2]
[424433448,1780883460000,-2289.31,0.00018904,2]
[424433447,1780883460000,-1398.29,0.00018904,2]
[424433438,1780883460000,-1588.49,0.00018904,2]
[424433441,1780883460000,-500.0,0.00018904,2]
[424433444,1780883460000,-1161.95,0.00018904,2]
[424433442,1780883460000,-7065.26,0.00018904,2]
[424433437,1780883460000,-3395.58,0.00018904,2]
[424433446,1780883460000,-500.0,0.00018904,2]
[424433449,1780883460000,-1890.08,0.00018904,2]
[424433439,1780883460000,-1127.17,0.00018904,2]
[424433440,1780883460000,-2631.22,0.00018904,2]
[424433443,1780883460000,-500.0,0.00018904,2]
[424433445,1780883460000,-603.45,0.00018904,2]
[424433450,1780883460000,-500.0,0.00018904,2]
[424433455,1780883460000,-150.0,0.00018989,2]
[424433456,1780883460000,-214566.77835733,0.00019,2]
[424433452,1780883460000,-553.88,0.00018904,2]
[424433453,1780883460000,-166.51,0.00018904,2]
[424433454,1780883460000,-310.11538441,0.00018933,2]
[424433430,1780883460000,-1440.04,0.00018904,2]
[424433426,1780883460000,-6368.18,0.00018904,2]
[424433407,1780883460000,-605.84,0.00018904,2]
[424433435,1780883460000,-500.0,0.00018904,2]
[424433436,1780883460000,-3940.81,0.00018904,2]
[424433408,1780883460000,-500.0,0.00018904,2]
[424433411,1780883460000,-500.0,0.00018904,2]
[424433412,1780883460000,-1117.32,0.00018904,2]
[424433420,1780883460000,-500.0,0.00018904,2]
[424433418,1780883460000,-555.15,0.00018904,2]
[424433423,1780883460000,-1717.19,0.00018904,2]
[424433422,1780883460000,-500.0,0.00018904,2]
[424433419,1780883460000,-1603.54,0.00018904,2]
[424433414,1780883460000,-500.0,0.00018904,2]
[424433413,1780883460000,-500.0,0.00018904,2]
[424433421,1780883460000,-500.0,0.00018904,2]
[424433417,1780883460000,-554.84,0.00018904,2]
[424433416,1780883460000,-500.0,0.00018904,2]
[424433431,1780883460000,-1507.4,0.00018904,2]
[424433432,1780883460000,-559.5,0.00018904,2]
[424433424,1780883460000,-500.0,0.00018904,2]
[424433434,1780883460000,-3940.21,0.00018904,2]
[424433433,1780883460000,-500.0,0.00018904,2]
[424433425,1780883460000,-2076.32,0.00018904,2]
[424433451,1780883460000,-615.25,0.00018904,2]
[424433415,1780883460000,-500.0,0.00018904,2]
[424433457,1780883461000,-3578.00447437,0.00019,2]
[424433458,1780883461000,-26.92021527,0.0001862,2]
[424433459,1780883461000,-500.0,0.00016438,2]
[424433460,1780883461000,-387.21940071,0.00016712,2]
[424433461,1780883461000,-173.84075573,0.0001862,2]
[424433463,1780883461000,-294.09307048,0.00019,2]
[424433462,1780883461000,-4974.22863589,0.00019,2]
[424433466,1780883525000,514.0,0.0002,120]
[424433468,1780883653000,514.4536552,0.00024877,30]
[424433472,1780883805000,-258.5862613,0.00014192,2]
[424433489,1780884163000,-1000.0,0.00013699,2]
[424433494,1780884448000,-749.55946425,0.00013161,2]
[424433495,1780884451000,-330.85737995,0.00013161,2]
[424433500,1780884562000,-181.5630224,0.00012753,2]
[424433501,1780884564000,-580.60079334,0.00012753,2]
[424433504,1780884564000,-219.71627997,0.00012881,2]
[424433503,1780884564000,-500.0,0.00012881,2]
[424433502,1780884564000,-500.0,0.00012881,2]
[424433592,1780884638000,-500.0,0.00012881,2]
[424433585,1780884638000,-500.0,0.00012881,2]
[424433581,1780884638000,-500.0,0.00012881,2]
[424433583,1780884638000,-500.0,0.00012881,2]
[424433584,1780884638000,-500.0,0.00012881,2]
[424433582,1780884638000,-500.0,0.00012881,2]
[424433575,1780884638000,-300.0,0.0001288,2]
[424433579,1780884638000,-500.0,0.00012881,2]
[424433576,1780884638000,-300.0,0.0001288,2]
[424433573,1780884638000,-5000.0,0.00012624,2]
[424433577,1780884638000,-280.28372003,0.00012881,2]
[424433574,1780884638000,-4971.73024934,0.00012752,2]
[424433587,1780884638000,-500.0,0.00012881,2]
[424433580,1780884638000,-500.0,0.00012881,2]
[424433586,1780884638000,-500.0,0.00012881,2]
[424433578,1780884638000,-500.0,0.00012881,2]
[424433589,1780884638000,-500.0,0.00012881,2]
[424433588,1780884638000,-500.0,0.00012881,2]
[424433601,1780884638000,-14644.0053521,0.00012882,2]
[424433600,1780884638000,-500.0,0.00012881,2]
[424433603,1780884638000,-791.7215255,0.00013841,2]
[424433595,1780884638000,-200.45609901,0.00012881,2]
[424433599,1780884638000,-500.0,0.00012881,2]
[424433602,1780884638000,-2295.72962968,0.00013564,2]
[424433604,1780884638000,-420.0,0.00014126,2]
[424433597,1780884638000,-590.20144978,0.00012881,2]
[424433594,1780884638000,-500.0,0.00012881,2]
[424433596,1780884638000,-500.0,0.00012881,2]
[424433593,1780884638000,-500.0,0.00012881,2]
[424433590,1780884638000,-500.0,0.00012881,2]
[424433598,1780884638000,-500.0,0.00012881,2]
[424433591,1780884638000,-500.0,0.00012881,2]
[424433678,1780884639000,-500.0,0.00016438,2]
[424433657,1780884639000,-500.0,0.00016438,2]
[424433652,1780884639000,-500.0,0.00016438,2]
[424433649,1780884639000,-630.65,0.00016438,2]
[424433638,1780884639000,-500.0,0.00016437,2]
[424433636,1780884639000,-1441.30635061,0.00016338,2]
[424433640,1780884639000,-500.0,0.00016437,2]
[424433658,1780884639000,-600.63,0.00016438,2]
[424433648,1780884639000,-500.0,0.00016438,2]
[424433647,1780884639000,-545.99,0.00016438,2]
[424433646,1780884639000,-500.0,0.00016438,2]
[424433642,1780884639000,-500.0,0.00016437,2]
[424433654,1780884639000,-500.0,0.00016438,2]
[424433650,1780884639000,-513.89,0.00016438,2]
[424433661,1780884639000,-500.0,0.00016438,2]
[424433663,1780884639000,-500.0,0.00016438,2]
[424433660,1780884639000,-500.0,0.00016438,2]
[424433659,1780884639000,-500.0,0.00016438,2]
[424433664,1780884639000,-500.0,0.00016438,2]
[424433635,1780884639000,-183.624725,0.00016332,2]
[424433666,1780884639000,-525.5,0.00016438,2]
[424433668,1780884639000,-500.0,0.00016438,2]
[424433667,1780884639000,-500.0,0.00016438,2]
[424433670,1780884639000,-500.0,0.00016438,2]
[424433669,1780884639000,-582.75,0.00016438,2]
[424433677,1780884639000,-366.75139316,0.00016438,2]
[424433673,1780884639000,-1345.67,0.00016438,2]
[424433656,1780884639000,-500.0,0.00016438,2]
[424433662,1780884639000,-500.0,0.00016438,2]
[424433622,1780884639000,-300.0,0.00015495,2]
[424433644,1780884639000,-500.0,0.00016437,2]
[424433672,1780884639000,-500.0,0.00016438,2]
[424433606,1780884639000,-2994.4037021,0.00014176,2]
[424433605,1780884639000,-302.0,0.00014126,2]
[424433607,1780884639000,-500.0,0.00014578,2]
[424433609,1780884639000,-500.0,0.00014887,2]
[424433611,1780884639000,-203.7798309,0.00015068,2]
[424433612,1780884639000,-3455.5367082,0.000152,2]
[424433610,1780884639000,-183.624725,0.00015063,2]
[424433615,1780884639000,-300.0,0.00015495,2]
[424433608,1780884639000,-3296.0209598,0.00014655,2]
[424433613,1780884639000,-169.0483,0.00015343,2]
[424433617,1780884639000,-300.0,0.00015495,2]
[424433614,1780884639000,-279.0,0.00015494,2]
[424433632,1780884639000,-502.26543448,0.00016297,2]
[424433616,1780884639000,-300.0,0.00015495,2]
[424433619,1780884639000,-300.0,0.00015495,2]
[424433620,1780884639000,-300.0,0.00015495,2]
[424433626,1780884639000,-300.0,0.00015495,2]
[424433628,1780884639000,-500.0,0.00015495,2]
[424433621,1780884639000,-300.0,0.00015495,2]
[424433627,1780884639000,-300.0,0.00015495,2]
[424433629,1780884639000,-2056.89160819,0.00015668,2]
[424433631,1780884639000,-516.20120146,0.00015769,2]
[424433630,1780884639000,-183.624725,0.00015697,2]
[424433624,1780884639000,-300.0,0.00015495,2]
[424433625,1780884639000,-300.0,0.00015495,2]
[424433623,1780884639000,-300.0,0.00015495,2]
[424433645,1780884639000,-925.0746,0.00016438,2]
[424433618,1780884639000,-300.0,0.00015495,2]
[424433679,1780884639000,-500.0,0.00016438,2]
[424433710,1780884639000,-824.9,0.00016438,2]
[424433675,1780884639000,-500.0,0.00016438,2]
[424433720,1780884639000,-500.0,0.00016438,2]
[424433680,1780884639000,-500.0,0.00016438,2]
[424433712,1780884639000,-500.0,0.00016438,2]
[424433709,1780884639000,-1229.88,0.00016438,2]
[424433714,1780884639000,-500.0,0.00016438,2]
[424433717,1780884639000,-702.5,0.00016438,2]